bitfinex/quotes_SOLUSD_20241107
["timestamp","ask_amount","ask_price","bid_price","bid_amount"]
[1731021521432,25.31054661,194.66,194.56,7.0678606]
[1731021521433,25.31054661,194.64,194.59,25.31054661]
[1731021521642,25.31054661,194.63,194.57,25.31054661]
[1731021522273,25.31054661,194.62,194.56,25.89060721]
[1731021522569,25.31054661,194.63,194.57,25.31054661]
[1731021523553,25.31054661,194.61,194.56,25.89060721]
[1731021523737,25.31054661,194.62,194.56,25.89060721]
[1731021524556,25.31054661,194.63,194.57,25.31054661]
[1731021525763,25.31054661,194.64,194.58,25.31054661]
[1731021525948,25.31054661,194.63,194.57,25.31054661]
[1731021528655,5.45973687,194.67,194.56,0.5800606]
[1731021528656,25.31054661,194.61,194.56,0.5800606]
[1731021529336,15.83407036,194.61,194.56,0.5800606]
[1731021529949,163.0,194.66,194.56,0.5800606]
[1731021530148,15.83407036,194.63,194.57,15.83407036]
[1731021530547,15.83407036,194.64,194.58,15.83407036]
[1731021530750,162.9,194.66,194.56,0.5800606]
[1731021530751,178.73407036,194.66,194.6,15.83407036]
[1731021531250,162.9,194.66,194.62,15.83407036]
[1731021531464,21.16831723,194.67,194.61,15.83407036]
[1731021531652,15.83407036,194.66,194.61,15.83407036]
[1731021532064,15.83407036,194.66,194.6,15.83407036]
[1731021534353,21.16831723,194.67,194.61,15.83407036]
[1731021535449,5.33424687,194.67,194.63,15.83407036]
[1731021535653,5.33424687,194.67,194.62,15.83407036]
[1731021536745,21.16831723,194.67,194.61,15.83407036]
[1731021537349,5.33424687,194.67,194.62,15.83407036]
[1731021537757,21.16831723,194.67,194.61,15.83407036]
[1731021539257,5.33424687,194.67,194.63,15.83407036]
[1731021539457,15.83407036,194.69,194.63,15.83407036]
[1731021539863,5.3267324,194.71,194.66,15.83407036]
[1731021540061,21.16080276,194.71,194.66,15.83407036]
[1731021540268,21.16080276,194.71,194.65,15.83407036]
[1731021540771,5.3267324,194.71,194.67,15.83407036]
[1731021540958,5.3267324,194.71,194.61,21.7365]
[1731021540959,5.3267324,194.71,194.66,15.83407036]
[1731021541356,5.3267324,194.71,194.68,15.83407036]
[1731021541563,15.83407036,194.76,194.7,15.83407036]
[1731021541764,15.83407036,194.75,194.69,15.83407036]
[1731021542362,5.32562019,194.77,194.62,0.12549]
[1731021542363,15.83407036,194.76,194.7,15.83407036]
[1731021542874,15.83407036,194.75,194.69,15.83407036]
[1731021543460,15.83407036,194.74,194.68,15.83407036]
[1731021544769,15.83407036,194.71,194.65,15.83407036]
[1731021544980,15.83407036,194.7,194.64,15.83407036]
[1731021545167,15.83407036,194.67,194.61,15.2341]
[1731021545481,15.83407036,194.67,194.61,31.06817036]
[1731021545679,15.83407036,194.67,194.61,15.83407036]
[1731021545864,15.83407036,194.66,194.6,15.83407036]
[1731021546053,15.83407036,194.65,194.59,15.83407036]
[1731021546771,15.83407036,194.64,194.58,15.83407036]
[1731021546987,15.83407036,194.65,194.59,15.83407036]
[1731021547280,15.83407036,194.62,194.56,32.45253096]
[1731021547979,15.83407036,194.62,194.56,16.41413096]
[1731021548392,15.83407036,194.62,194.57,20.0]
[1731021549572,15.83407036,194.63,194.57,15.83407036]
[1731021549773,15.83407036,194.63,194.58,15.83407036]
[1731021550882,15.83407036,194.64,194.58,15.83407036]
[1731021551283,15.83407036,194.63,194.58,15.83407036]
[1731021551584,15.83407036,194.63,194.57,15.83407036]
[1731021552371,5.32962414,194.65,194.62,15.83407036]
[1731021552682,5.32966512,194.68,194.64,15.83407036]
[1731021553064,21.16373548,194.68,194.62,15.83407036]
[1731021554069,21.16373548,194.68,194.58,20.0]
[1731021554070,15.83407036,194.67,194.61,15.83407036]
[1731021554270,5.32966512,194.68,194.62,15.83407036]
[1731021554802,15.83407036,194.7,194.64,15.83407036]
[1731021555086,6.3189,194.74,194.59,0.12549]
[1731021555087,15.83407036,194.69,194.63,15.83407036]
[1731021556278,15.83407036,194.67,194.61,15.83407036]
[1731021556463,15.83407036,194.68,194.62,15.83407036]
[1731021556963,0.12549,194.71,194.63,15.83407036]
[1731021556964,15.83407036,194.69,194.63,15.83407036]
[1731021557377,15.83407036,194.7,194.64,15.83407036]
[1731021558178,15.83407036,194.69,194.63,15.83407036]
[1731021558777,15.83407036,194.7,194.64,15.83407036]
[1731021559077,5.32772216,194.72,194.59,0.12549]
[1731021559078,15.83407036,194.69,194.63,15.83407036]
[1731021559677,15.83407036,194.7,194.64,15.83407036]
[1731021561084,15.83407036,194.69,194.63,15.83407036]
[1731021562185,15.83407036,194.7,194.64,15.83407036]
[1731021562391,15.83407036,194.71,194.65,15.83407036]
[1731021562567,15.83407036,194.7,194.64,15.83407036]
[1731021563587,15.83407036,194.69,194.63,15.83407036]
[1731021563763,5.32772216,194.72,194.6,15.4047]
[1731021563764,15.83407036,194.68,194.62,15.83407036]
[1731021563962,15.83407036,194.68,194.56,0.5800606]
[1731021563963,15.83407036,194.65,194.59,15.83407036]
[1731021564180,15.83407036,194.7,194.57,15.83407036]
[1731021564181,15.83407036,194.63,194.57,15.83407036]
[1731021564399,15.83407036,194.62,194.56,16.41413096]
[1731021564693,15.83407036,194.58,194.56,0.5800606]
[1731021565161,15.83407036,194.59,194.56,0.5800606]
[1731021565360,15.83407036,194.58,194.56,0.5800606]
[1731021565781,15.83407036,194.6,194.56,0.5800606]
[1731021565981,15.83407036,194.63,194.57,15.83407036]
[1731021566362,15.83407036,194.62,194.56,16.41413096]
[1731021568082,15.83407036,194.63,194.57,15.83407036]
[1731021569093,15.83407036,194.64,194.59,15.83407036]
[1731021569291,5.31502372,194.65,194.56,0.5800606]
[1731021569292,15.83407036,194.63,194.57,15.83407036]
[1731021571071,15.83407036,194.62,194.56,0.5800606]
[1731021571370,5.31502372,194.65,194.57,15.83407036]
[1731021571371,15.83407036,194.63,194.57,15.83407036]
[1731021572773,21.14909408,194.65,194.59,15.83407036]
[1731021573088,15.83407036,194.66,194.6,15.83407036]
[1731021573264,15.83407036,194.65,194.59,15.83407036]
[1731021573462,21.14695422,194.68,194.62,15.83407036]
[1731021573677,15.83407036,194.69,194.63,15.83407036]
[1731021573886,15.83407036,194.68,194.62,15.83407036]
[1731021574191,0.22549,194.73,194.64,15.83407036]
[1731021574192,21.14442374,194.7,194.64,15.83407036]
[1731021574774,19.64442374,194.7,194.64,15.83407036]
[1731021575586,15.83407036,194.7,194.64,15.83407036]
[1731021577076,15.83407036,194.71,194.65,15.83407036]
[1731021578765,15.83407036,194.72,194.66,15.83407036]
[1731021578969,5.30538823,194.74,194.69,15.83407036]
[1731021579187,15.83407036,194.75,194.69,15.83407036]
[1731021579390,15.83407036,194.73,194.67,15.83407036]
[1731021579973,15.83407036,194.74,194.68,15.83407036]
[1731021580373,15.83407036,194.75,194.69,15.83407036]
[1731021580977,15.83407036,194.74,194.69,15.83407036]
[1731021581186,15.83407036,194.74,194.65,6.4256]
[1731021581383,15.83407036,194.74,194.68,15.83407036]
[1731021581584,15.83407036,194.73,194.67,15.83407036]
[1731021581797,15.83407036,194.74,194.68,15.83407036]
[1731021582004,15.83407036,194.73,194.67,15.83407036]
[1731021582295,15.83407036,194.69,194.63,15.83407036]
[1731021582496,15.83407036,194.68,194.62,35.83407036]
[1731021582680,15.83407036,194.69,194.63,15.83407036]
[1731021584698,15.83407036,194.7,194.64,15.83407036]
[1731021586274,15.83407036,194.69,194.63,15.83407036]
[1731021586702,15.83407036,194.7,194.64,15.83407036]
[1731021587481,15.83407036,194.7,194.63,15.83407036]
[1731021588600,15.83407036,194.73,194.67,15.83407036]
[1731021588897,15.83407036,194.72,194.66,15.83407036]
[1731021589493,0.12549,194.76,194.61,0.12549]
[1731021589494,15.83407036,194.73,194.67,15.83407036]
[1731021589690,15.83407036,194.74,194.68,15.83407036]
[1731021590915,15.83407036,194.75,194.69,15.83407036]
[1731021591088,15.83407036,194.74,194.68,15.83407036]
[1731021591691,15.83407036,194.74,194.63,23.902374]
[1731021591996,15.83407036,194.73,194.67,15.83407036]
[1731021592398,15.83407036,194.72,194.66,15.83407036]
[1731021594490,15.83407036,194.7,194.65,15.83407036]
[1731021595107,15.83407036,194.7,194.64,15.83407036]
[1731021595608,15.83407036,194.7,194.65,15.83407036]
[1731021596907,15.83407036,194.71,194.65,15.83407036]
[1731021597109,15.83407036,194.74,194.68,15.83407036]
[1731021597309,21.13827018,194.75,194.69,15.83407036]
[1731021597617,5.30419982,194.75,194.7,15.83407036]
[1731021598203,15.83407036,194.74,194.68,15.83407036]
[1731021598508,15.83407036,194.73,194.67,15.83407036]
[1731021599000,15.83407036,194.74,194.68,15.83407036]
[1731021599498,21.13827018,194.75,194.69,15.83407036]
[1731021599992,15.83407036,194.74,194.68,15.83407036]
[1731021600588,5.30419982,194.75,194.7,15.83407036]
[1731021600790,162.9,194.76,194.72,15.83407036]
[1731021601097,15.83407036,194.76,194.7,15.83407036]
[1731021601298,15.83407036,194.74,194.64,20.0]
[1731021601497,15.83407036,194.74,194.68,15.83407036]
[1731021602095,15.83407036,194.73,194.67,15.83407036]
[1731021602412,15.83407036,194.73,194.64,20.0]
[1731021602413,15.83407036,194.74,194.68,15.83407036]
[1731021602911,15.83407036,194.76,194.7,15.83407036]
[1731021603692,15.83407036,194.75,194.69,15.83407036]
[1731021603907,15.83407036,194.72,194.66,15.83407036]
[1731021604109,15.83407036,194.71,194.65,15.83407036]
[1731021604896,15.83407036,194.72,194.66,15.83407036]
[1731021605197,15.83407036,194.74,194.69,15.83407036]
[1731021605407,15.83407036,194.74,194.61,0.12549]
[1731021605408,10.11948738,194.74,194.68,10.11948738]
[1731021605607,10.11948738,194.76,194.7,10.11948738]
[1731021605797,5.30611986,194.77,194.63,0.12549]
[1731021605798,5.30611986,194.77,194.72,10.11948738]
[1731021605998,5.30611986,194.77,194.73,10.11948738]
[1731021606411,33.34678738,194.79,194.73,10.11948738]
[1731021606719,32.07115548,194.79,194.73,10.11948738]
[1731021606900,10.11948738,194.78,194.72,10.11948738]
[1731021607795,10.11948738,194.76,194.68,20.0]
[1731021608011,10.11948738,194.76,194.7,10.11948738]
[1731021608620,10.11948738,194.75,194.69,10.11948738]
[1731021608917,10.11948738,194.73,194.67,10.11948738]
[1731021609117,10.11948738,194.71,194.65,10.11948738]
[1731021609302,10.11948738,194.69,194.58,16.0295]
[1731021609510,10.11948738,194.69,194.63,10.11948738]
[1731021610110,10.11948738,194.69,194.64,10.11948738]
[1731021610298,10.11948738,194.7,194.64,10.11948738]
[1731021611405,15.81843217,194.71,194.65,15.81843217]
[1731021612625,15.81843217,194.7,194.64,15.81843217]
[1731021612820,15.81843217,194.68,194.62,15.81843217]
[1731021613030,15.81843217,194.65,194.58,16.0295]
[1731021613204,15.81843217,194.64,194.58,15.81843217]
[1731021613625,15.81843217,194.65,194.59,15.81843217]
[1731021613824,15.81843217,194.67,194.61,15.81843217]
[1731021614003,15.81843217,194.67,194.62,15.81843217]
[1731021614510,16.5666,194.7,194.62,15.81843217]
[1731021614511,15.81843217,194.68,194.62,15.81843217]
[1731021614831,15.81843217,194.67,194.61,15.81843217]
[1731021615121,15.81843217,194.66,194.6,15.81843217]
[1731021615361,15.81843217,194.64,194.58,15.81843217]
[1731021615716,15.81843217,194.62,194.57,15.81843217]
[1731021617003,15.81843217,194.62,194.56,16.39849277]
[1731021617200,15.81843217,194.6,194.56,0.5800606]
[1731021617513,15.81843217,194.61,194.56,0.5800606]
[1731021617714,15.81843217,194.6,194.56,0.5800606]
[1731021617908,15.81843217,194.59,194.56,0.5800606]
[1731021618224,15.81843217,194.57,194.56,0.5800606]
[1731021619522,15.81843217,194.59,194.56,0.5800606]
[1731021619823,15.81843217,194.6,194.56,0.5800606]
[1731021620209,15.81843217,194.59,194.56,0.5800606]
[1731021620414,15.81843217,194.6,194.56,0.5800606]
[1731021620623,15.81843217,194.59,194.56,0.5800606]
[1731021621821,15.81843217,194.57,194.56,0.5800606]
[1731021623104,15.81843217,194.58,194.56,0.5800606]
[1731021623513,15.81843217,194.57,194.56,0.5800606]
[1731021624108,15.81843217,194.59,194.56,0.5800606]
[1731021624302,15.81843217,194.58,194.56,0.5800606]
[1731021624706,15.81843217,194.59,194.56,0.5800606]
[1731021624906,16.3292,194.63,194.56,16.39849277]
[1731021625115,15.81843217,194.62,194.56,16.39849277]
[1731021625431,15.81843217,194.61,194.56,16.39849277]
[1731021625608,32.14763217,194.63,194.57,15.81843217]
[1731021626118,15.81843217,194.62,194.56,16.39849277]
[1731021626311,16.3292,194.63,194.58,15.81843217]
[1731021626535,15.81843217,194.62,194.56,16.39849277]
[1731021627434,15.81843217,194.61,194.56,0.5800606]
[1731021628117,15.81843217,194.61,194.56,16.39849277]
[1731021628427,5.35897012,194.63,194.58,15.81843217]
[1731021628620,5.35897012,194.63,194.59,15.81843217]
[1731021629507,178.71843217,194.66,194.6,15.81843217]
[1731021629704,21.17692182,194.65,194.59,15.81843217]
[1731021630426,5.35848965,194.65,194.61,15.81843217]
[1731021630629,15.81843217,194.67,194.61,15.81843217]
[1731021630824,15.81843217,194.66,194.61,15.81843217]
[1731021631710,15.81843217,194.66,194.56,0.5800606]
[1731021631711,15.81843217,194.64,194.59,15.81843217]
[1731021631909,5.35808836,194.67,194.56,0.5800606]
[1731021631910,15.81843217,194.61,194.56,0.5800606]
[1731021632134,15.81843217,194.61,194.56,20.5800606]
[1731021632430,15.81843217,194.63,194.57,15.81843217]
[1731021634322,15.81843217,194.64,194.58,15.81843217]
[1731021634531,15.81843217,194.66,194.61,15.81843217]
[1731021634729,15.81843217,194.66,194.6,15.81843217]
[1731021634932,15.81843217,194.66,194.56,0.5800606]
[1731021634933,15.81843217,194.65,194.59,15.81843217]
[1731021635118,15.81843217,194.66,194.6,15.81843217]
[1731021635319,5.35808836,194.67,194.62,15.81843217]
[1731021635523,15.81843217,194.7,194.64,15.81843217]
[1731021636523,5.35712543,194.71,194.66,15.81843217]
[1731021636731,5.35712543,194.71,194.67,15.81843217]
[1731021637326,6.4645,194.8,194.7,15.81843217]
[1731021637533,15.81843217,194.79,194.73,15.81843217]
[1731021637739,15.81843217,194.8,194.75,15.81843217]
[1731021637941,21.17292045,194.79,194.73,15.81843217]
[1731021638340,21.17292045,194.79,194.67,0.12549]
[1731021638341,5.35448828,194.79,194.74,15.81843217]
[1731021639254,21.17292045,194.79,194.73,15.81843217]
[1731021639429,15.81843217,194.76,194.71,20.0]
[1731021639629,15.81843217,194.77,194.71,35.81843217]
[1731021640370,15.81843217,194.75,194.69,15.81843217]
[1731021640650,15.81843217,194.73,194.67,35.81843217]
[1731021640821,15.81843217,194.72,194.66,31.79393217]
[1731021641132,15.81843217,194.71,194.65,15.81843217]
[1731021641552,15.81843217,194.7,194.64,15.81843217]
[1731021641763,15.81843217,194.69,194.63,15.81843217]
[1731021642932,22.4509,194.75,194.61,21.8901]
[1731021642933,15.81843217,194.68,194.62,15.81843217]
[1731021643135,15.81843217,194.67,194.62,15.81843217]
[1731021643335,15.81843217,194.66,194.6,15.81843217]
[1731021643549,15.81843217,194.65,194.59,15.81843217]
[1731021643749,15.81843217,194.66,194.6,15.81843217]
[1731021644534,15.81843217,194.66,194.61,15.81843217]
[1731021644741,0.22549,194.74,194.61,15.81843217]
[1731021644742,15.81843217,194.67,194.61,15.81843217]
[1731021644930,15.81843217,194.69,194.64,15.81843217]
[1731021645345,15.81843217,194.69,194.63,15.81843217]
[1731021646339,163.0,194.77,194.57,0.22549]
[1731021646340,168.25448828,194.79,194.67,15.81843217]
[1731021646538,168.25448828,194.79,194.61,0.12549]
[1731021646539,15.81843217,194.74,194.69,15.81843217]
[1731021646855,15.81843217,194.76,194.7,15.81843217]
[1731021647539,15.81843217,194.77,194.71,15.81843217]
[1731021647857,15.81843217,194.79,194.74,15.81843217]
[1731021648157,21.17338817,194.79,194.74,15.81843217]
[1731021648357,21.17338817,194.79,194.66,22.6326]
[1731021648358,21.17338817,194.79,194.73,15.81843217]
[1731021649153,15.81843217,194.78,194.72,15.81843217]
[1731021649456,15.81843217,194.78,194.73,15.81843217]
[1731021649832,21.17338817,194.79,194.73,15.81843217]
[1731021650029,21.17338817,194.79,194.74,15.81843217]
[1731021650030,5.354956,194.79,194.74,15.81843217]
[1731021650369,21.17338817,194.79,194.74,15.81843217]
[1731021650541,5.354956,194.79,194.74,15.81843217]
[1731021651166,5.354956,194.79,194.67,43.902374]
[1731021651369,15.81843217,194.84,194.78,15.81843217]
[1731021651651,15.81843217,194.86,194.8,15.81843217]
[1731021651859,21.17120677,194.86,194.8,15.81843217]
[1731021652032,15.81843217,194.85,194.8,15.81843217]
[1731021652748,5.3527746,194.86,194.81,15.81843217]
[1731021653537,5.3527746,194.86,194.82,15.81843217]
[1731021653739,15.81843217,194.89,194.83,15.81843217]
[1731021654037,21.17006051,194.88,194.82,15.81843217]
[1731021654234,5.35162834,194.88,194.84,15.81843217]
[1731021654540,15.81843217,194.89,194.84,15.81843217]
[1731021655441,15.81843217,194.89,194.83,15.81843217]
[1731021655639,5.35135046,194.9,194.85,15.81843217]
[1731021655865,184.5267,194.94,194.86,15.81843217]
[1731021655866,15.81843217,194.92,194.86,15.81843217]
[1731021656078,15.81843217,194.91,194.86,15.81843217]
[1731021656379,5.35098159,194.93,194.88,15.81843217]
[1731021656537,15.81843217,194.94,194.83,16.0473]
[1731021656538,15.81843217,194.96,194.9,15.81843217]
[1731021656737,21.16834049,194.96,194.9,15.81843217]
[1731021657247,15.81843217,194.97,194.91,15.81843217]
[1731021657443,25.23903001,194.97,194.91,25.23903001]
[1731021657964,25.23903001,194.98,194.92,25.23903001]
[1731021658262,25.23903001,194.98,194.85,0.22549]
[1731021658263,25.23903001,194.97,194.91,25.23903001]
[1731021658565,25.23903001,194.98,194.92,25.23903001]
[1731021658943,25.23903001,194.97,194.91,25.23903001]
[1731021659262,25.23903001,194.95,194.89,25.23903001]
[1731021659452,5.34931163,194.99,194.87,25.23903001]
[1731021659453,25.23903001,194.93,194.87,25.23903001]
[1731021659654,25.23903001,194.94,194.88,45.23903001]
[1731021660048,25.23903001,194.92,194.86,25.23903001]
[1731021660249,25.23903001,194.91,194.85,45.23903001]
[1731021660853,25.23903001,194.91,194.86,25.23903001]
[1731021661163,25.23903001,194.92,194.87,20.0]
[1731021661376,23.902374,194.98,194.87,20.0]
[1731021661377,25.23903001,194.91,194.87,20.0]
[1731021661675,25.23903001,194.95,194.89,25.23903001]
[1731021661845,25.23903001,194.95,194.85,20.0]
[1731021661846,25.23903001,194.95,194.9,25.23903001]
[1731021662046,25.23903001,194.96,194.9,25.23903001]
[1731021662269,25.23903001,194.97,194.91,25.23903001]
[1731021662763,25.23903001,194.96,194.9,25.23903001]
[1731021664165,25.23903001,194.97,194.92,25.23903001]
[1731021664365,25.23903001,194.97,194.91,25.23903001]
[1731021664866,5.34931163,194.99,194.9,25.23903001]
[1731021664867,25.23903001,194.96,194.9,25.23903001]
[1731021665067,25.23903001,194.95,194.9,25.23903001]
[1731021665443,25.23903001,194.95,194.89,25.23903001]
[1731021665765,25.23903001,194.96,194.9,25.23903001]
[1731021666365,25.23903001,194.97,194.91,25.23903001]
[1731021666867,179.3798,195.04,194.87,20.12549]
[1731021666868,25.23903001,194.98,194.92,25.23903001]
[1731021667447,25.23903001,194.99,194.93,25.23903001]
[1731021667850,25.23903001,194.98,194.92,25.23903001]
[1731021668073,25.23903001,194.99,194.93,25.23903001]
[1731021668240,16.4798,195.04,194.94,25.23903001]
[1731021668241,25.23903001,195.0,194.94,25.23903001]
[1731021668565,25.23903001,195.02,194.96,25.23903001]
[1731021669074,25.23903001,195.0,194.94,25.23903001]
[1731021669365,25.23903001,194.95,194.91,20.0]
[1731021670157,25.23903001,194.94,194.86,23.776884]
[1731021670354,25.23903001,194.94,194.88,25.23903001]
[1731021670548,25.23903001,194.96,194.91,25.23903001]
[1731021670750,25.23903001,194.98,194.92,25.23903001]
[1731021671648,0.12549,195.05,194.86,23.876884]
[1731021671649,25.23903001,195.0,194.95,25.23903001]
[1731021672571,25.23903001,195.01,194.95,25.23903001]
[1731021673274,25.23903001,194.99,194.93,25.23903001]
[1731021673574,25.23903001,194.98,194.92,25.23903001]
[1731021674250,25.23903001,194.97,194.92,25.23903001]
[1731021674570,25.23903001,194.94,194.85,15.9353]
[1731021674872,25.23903001,194.91,194.85,41.17433001]
[1731021675175,25.23903001,194.9,194.85,15.9353]
[1731021675351,25.23903001,194.91,194.85,41.17433001]
[1731021676069,25.23903001,194.92,194.87,25.23903001]
[1731021676667,25.23903001,194.92,194.86,45.23903001]
[1731021676860,25.23903001,194.91,194.86,20.0]
[1731021677360,25.23903001,194.89,194.83,25.23903001]
[1731021677668,25.23903001,194.91,194.85,25.23903001]
[1731021678263,25.23903001,194.9,194.85,25.23903001]
[1731021678573,6.1964,194.98,194.81,15.743]
[1731021678574,25.23903001,194.88,194.82,25.23903001]
[1731021678768,25.23903001,194.89,194.83,25.23903001]
[1731021678956,25.23903001,194.88,194.82,25.23903001]
[1731021679679,25.23903001,194.89,194.83,25.23903001]
[1731021680061,25.23903001,194.86,194.81,15.743]
[1731021680264,25.23903001,194.85,194.79,25.23903001]
[1731021680578,25.23903001,194.9,194.84,25.23903001]
[1731021680756,25.23903001,194.89,194.83,25.23903001]
[1731021680958,25.23903001,194.88,194.82,25.23903001]
[1731021681359,25.23903001,194.88,194.83,25.23903001]
[1731021681572,25.23903001,194.88,194.77,0.1]
[1731021681573,25.23903001,194.9,194.84,25.23903001]
[1731021682079,25.23903001,194.91,194.85,25.23903001]
[1731021682481,25.23903001,194.9,194.84,25.23903001]
[1731021682858,25.23903001,194.87,194.76,15.616]
[1731021683078,25.23903001,194.89,194.83,25.23903001]
[1731021683283,5.35047807,194.95,194.77,0.1]
[1731021683499,5.35047807,194.95,194.84,15.78796761]
[1731021683500,15.78796761,194.9,194.84,15.78796761]
[1731021683775,15.78796761,194.93,194.87,15.78796761]
[1731021683977,15.78796761,194.92,194.86,15.78796761]
[1731021684181,5.35047807,194.95,194.85,15.78796761]
[1731021684182,15.78796761,194.91,194.85,15.78796761]
[1731021686484,15.78796761,194.9,194.84,15.78796761]
[1731021686784,15.78796761,194.85,194.78,15.78796761]
[1731021687076,15.78796761,194.85,194.79,15.91345761]
[1731021687284,15.78796761,194.89,194.83,15.78796761]
[1731021687583,15.78796761,194.89,194.84,15.78796761]
[1731021687783,15.78796761,194.9,194.84,15.78796761]
[1731021687977,15.78796761,194.91,194.86,15.78796761]
[1731021688175,15.78796761,194.93,194.87,15.78796761]
[1731021688563,15.78796761,194.94,194.88,15.78796761]
[1731021688770,21.08097807,194.95,194.91,15.78796761]
[1731021688771,5.35047807,194.95,194.91,15.78796761]
[1731021688966,15.78796761,194.94,194.88,15.78796761]
[1731021689384,15.78796761,194.95,194.89,15.78796761]
[1731021690262,15.78796761,194.95,194.9,15.78796761]
[1731021691381,15.78796761,194.95,194.84,43.902374]
[1731021691693,15.78796761,194.95,194.89,15.78796761]
[1731021692281,15.78796761,194.94,194.89,15.78796761]
[1731021692884,15.78796761,194.95,194.89,15.78796761]
[1731021694696,15.78796761,194.94,194.89,15.78796761]
[1731021695068,15.78796761,194.95,194.89,15.78796761]
[1731021696089,15.78796761,194.94,194.89,15.78796761]
[1731021696289,15.78796761,194.94,194.88,15.78796761]
[1731021696873,15.78796761,194.91,194.85,15.78796761]
[1731021697090,15.78796761,194.9,194.84,15.78796761]
[1731021697575,15.78796761,194.91,194.85,15.78796761]
[1731021698090,15.78796761,194.9,194.85,15.78796761]
[1731021698682,15.78796761,194.88,194.79,22.3393]
[1731021698886,15.78796761,194.86,194.8,15.78796761]
[1731021699067,15.78796761,194.84,194.79,31.98796761]
[1731021699598,15.78796761,194.86,194.8,15.78796761]
[1731021700179,15.78796761,194.87,194.82,15.78796761]
[1731021700393,15.78796761,194.92,194.86,15.78796761]
[1731021700873,15.78796761,194.94,194.88,15.78796761]
[1731021701272,31.96226761,194.96,194.91,15.78796761]
[1731021701473,15.78796761,194.97,194.91,15.78796761]
[1731021701692,15.78796761,194.95,194.89,15.78796761]
[1731021702073,15.78796761,194.94,194.89,15.78796761]
[1731021702284,15.78796761,194.95,194.89,15.78796761]
[1731021702694,15.78796761,194.96,194.9,15.78796761]
[1731021704806,15.78796761,194.95,194.9,15.78796761]
[1731021705304,15.78796761,194.93,194.88,16.4941]
[1731021705500,15.78796761,194.96,194.9,15.78796761]
[1731021706082,15.78796761,194.94,194.89,15.78796761]
[1731021706274,15.78796761,194.93,194.88,16.4941]
[1731021706487,15.78796761,194.94,194.88,32.28206761]
[1731021706987,15.78796761,194.93,194.88,16.4941]
[1731021707199,15.78796761,194.93,194.85,0.12549]
[1731021707381,15.78796761,194.94,194.88,15.78796761]
[1731021707878,15.78796761,194.94,194.89,15.78796761]
[1731021708277,15.78796761,194.94,194.88,15.78796761]
[1731021709381,15.78796761,194.95,194.89,15.78796761]
[1731021710604,15.78796761,194.98,194.93,15.78796761]
[1731021711104,6.624,195.03,194.95,15.78796761]
[1731021711422,15.78796761,195.01,194.95,15.78796761]
[1731021711902,21.12365336,195.05,194.91,21.8317]
[1731021711903,15.78796761,195.0,194.92,43.902374]
[1731021712085,15.78796761,195.0,194.95,15.78796761]
[1731021712283,21.12365336,195.05,194.92,43.902374]
[1731021712491,15.78796761,194.99,194.94,0.12549]
[1731021712780,15.78796761,194.98,194.92,59.56485161]
[1731021712992,15.78796761,194.97,194.92,15.78796761]
[1731021713203,15.78796761,194.95,194.89,15.78796761]
[1731021713381,15.78796761,194.93,194.87,15.78796761]
[1731021714395,15.78796761,194.93,194.88,20.0]
[1731021714898,22.29216761,195.0,194.89,15.78796761]
[1731021714899,15.78796761,194.95,194.89,15.78796761]
[1731021717000,15.78796761,194.99,194.93,15.78796761]
[1731021718198,15.78796761,194.98,194.93,15.78796761]
[1731021718706,15.78796761,194.97,194.92,0.12549]
[1731021719209,27.48015336,195.05,194.9,6.37648959]
[1731021719210,15.78796761,194.95,194.9,6.37466334]
[1731021719390,15.78796761,194.95,194.9,20.12549]
[1731021719914,15.78796761,194.93,194.88,20.0]
[1731021720095,15.78796761,194.94,194.88,35.78796761]
[1731021721004,15.78796761,194.94,194.88,15.78796761]
[1731021721514,15.78796761,194.95,194.89,15.78796761]
[1731021721895,15.78796761,194.99,194.93,15.78796761]
[1731021722213,15.78796761,195.0,194.94,15.78796761]
[1731021722387,22.0319,195.05,194.93,15.78796761]
[1731021722388,15.78796761,194.98,194.93,15.78796761]
[1731021722793,15.78796761,194.99,194.93,15.78796761]
[1731021723516,15.78796761,194.98,194.93,15.78796761]
[1731021724192,15.78796761,194.98,194.91,43.902374]
[1731021724392,15.78796761,194.99,194.93,15.78796761]
[1731021725422,15.78796761,195.0,194.94,15.78796761]
[1731021726812,15.78796761,195.0,194.95,15.78796761]
[1731021726991,15.78796761,195.02,194.97,15.78796761]
[1731021727316,5.34538899,195.03,194.91,50.27293991]
[1731021727317,15.78796761,194.99,194.93,15.78796761]
[1731021727494,15.78796761,194.99,194.94,0.12549]
[1731021727932,15.78796761,194.99,194.93,15.78796761]
[1731021730315,15.78796761,195.0,194.94,15.78796761]
[1731021730510,5.34538899,195.03,194.92,15.91345761]
[1731021730511,15.78796761,194.98,194.92,15.91345761]
[1731021731694,5.34538899,195.03,194.93,15.78796761]
[1731021731695,15.78796761,194.99,194.93,15.78796761]
[1731021732700,15.78796761,194.98,194.92,15.91345761]
[1731021733220,15.78796761,194.97,194.92,15.91345761]
[1731021733403,15.78796761,194.98,194.92,15.91345761]
[1731021733800,15.78796761,194.95,194.89,15.78796761]
[1731021733999,15.78796761,195.0,194.9,15.78796761]